Workbook

Sheet 3&4
B2: Funded Early Learning - 3 & 4 Year Olds - Maintained Schools Autumn 2024 - Revised Indicative Budget
B5: Provider::
B6: 1
B7: INTEGRA No: | D7: =VLOOKUP(B6,C69:D434,2,FALSE) -> 0047234000
B9: Funding Rate per pupil hour £
B10: Base Rate Funding per Pupil £ (as at 1/4/24) | I10: 5.06
B11: Deprivation Hourly Base Rate £ | I11: =VLOOKUP($D$7,'[4]Autumn 24'!$B:$L,11,FALSE)-I10 -> 0.31 | P11: Internal checks
B12: FEL Funding Hourly Rate (1/4/24 to 31/8/24) | I12: =VLOOKUP(D7,'[5]Summer 24'!$B:$L,11,FALSE) -> 5.37 | O12: =VLOOKUP($D$7,'[4]Autumn 24'!$B:$L,11,FALSE)-I12 -> 0 | P12: =VLOOKUP($D$7,'[6]2022 23'!$B:$L,11,FALSE)-I12 -> -0.62 | Q12: Check the Provider FEL rate
B14: Increased FEL Hourly Rate including EYBG* (payable from 1/9/24 to 31/3/25) | I14: =VLOOKUP($D$7,'[4]Autumn 24'!$B:$M,12,FALSE) -> 5.48 | O14: =VLOOKUP($D$7,'[4]Autumn 24'!$B:$M,12,FALSE)-I14 -> 0
B16: Funding Breakdown | E16: Hours | G16: £/Hour | I16: Indicative Funding £
B17: Summer Term 2024 ACTUAL Universal Hours | E17: =ROUND(VLOOKUP($D$7,'[4]Autumn 24'!$B:$K,4,FALSE),0) -> 5850 | G17: =I12 -> 5.37 | I17: =E17*G17 -> 31414.5
B18: Autumn Term 2024 ACTUAL Universal Hours | E18: =ROUND(VLOOKUP($D$7,'[4]Autumn 24'!$B:$K,6,FALSE),0) -> 3675 | G18: =I14 -> 5.48 | I18: =E18*G18 -> 20139
B19: Spring Term 2025 Forecast Universal Hours | E19: =ROUND(VLOOKUP($D$7,'[4]Autumn 24'!$B:$K,8,FALSE),0) -> 5370 | G19: =I14 -> 5.48 | I19: 29427.6 | P19: =VLOOKUP($D$7,'[6]2022 23'!$B:$K,10,FALSE)-E25 -> -7110 | Q19: Check total forecast FEL hours
B21: Summer Term 2024 ACTUAL EFE Hours | E21: =ROUND(VLOOKUP($D$7,'[4]Autumn 24'!$B:$L,5,FALSE),0) -> 2730 | G21: =I12 -> 5.37 | I21: 14660.1 | P21: =I12-G25 -> 5.37 | Q21: Check FEL rate
B22: Autumn Term 2024 ACTUAL EFE Hours | E22: =ROUND(VLOOKUP($D$7,'[4]Autumn 24'!$B:$K,7,FALSE),0) -> 1785 | G22: =I14 -> 5.48 | I22: 9781.8 | P22: =E25*G25-I25 -> -120794.4 | Q22: Check revised ind budget
B23: Spring Term 2025 Forecast EFE Hours | E23: =ROUND(VLOOKUP($D$7,'[4]Autumn 24'!$B:$K,9,FALSE),0) -> 2805 | G23: =I14 -> 5.48 | I23: 15371.4
B25: Funding Based on Indicative Hours: | E25: =SUM(E17:E23) -> 22215 | I25: =SUM(I17:I23) -> 120794.4
E26: =VLOOKUP($D$7,'[4]Autumn 24'!$B:$N,10,FALSE)-E25 -> 0 | I26: =VLOOKUP($D$7,'[4]Autumn 24'!$B:$N,13,FALSE)-I25 -> 0
B27: Early Years Pupil Premium (EYPP) Funding Breakdown (payable on universal hours only) | E27: Hours | G27: £/Hour | I27: Indicative Funding £
B28: Summer Term 2024 EYPP ACTUAL | E28: =VLOOKUP($D$7,'[4]Autumn 24'!$B:$AG,22,FALSE) -> 3315 | G28: 0.68 | I28: =E28*G28 -> 2254.2 | O28: =VLOOKUP($D$7,'[4]Autumn 24'!$B:$AG,23,FALSE)-I28 -> 0 | P28: =VLOOKUP($D$7,'[6]2022 23'!$B:$AF,21,FALSE)-E32 -> -2640 | Q28: Check total forecast EYPP hours
B29: Autumn Term 2024 EYPP ACTUAL | E29: =VLOOKUP($D$7,'[4]Autumn 24'!$B:$AX,39,FALSE) -> 1470 | G29: 0.68 | I29: =E29*G29 -> 999.6 | O29: =VLOOKUP($D$7,'[4]Autumn 24'!$B:$AX,40,FALSE)-I29 -> 0
B30: Spring Term 2025 EYPP Forecast | E30: 0 | G30: 0.68 | I30: 0
P31: =#REF!*#REF!-#REF! ->  | Q31: Check revised ind budget EYPP
B32: Indicative Funding for Early Years Pupil Premium: | E32: =SUM(E28:E30) -> 4785 | I32: =SUM(I28:I30) -> 3253.8 | O32: =E32*G30-I32 -> 0
B34: Disability Access Funding Breakdown: | E34: Pupils | G34: £/Annual | I34: DA Funding
B35: Summer Term 2024 Actual | E35: =IFERROR(VLOOKUP($D$7,'[4]Autumn 24'!$B:$AG,24,FALSE),0) -> 0 | G35: 910 | I35: =E35*G35 -> 0 | O35: =IFERROR(VLOOKUP($D$7,'[4]Autumn 24'!$B:$AG,25,FALSE),0)-I35 -> 0 | P35: =VLOOKUP($D$7,'[6]2022 23'!$B:$AF,23,FALSE) -> 0 | Q35: Check total forecast DAF hours
B36: Autumn Term 2024 ACTUAL | E36: =IFERROR(VLOOKUP($D$7,'[4]Autumn 24'!$B:$AX,41,FALSE),0) -> 0 | G36: 910 | I36: =E36*G36 -> 0 | O36: =IFERROR(VLOOKUP($D$7,'[4]Autumn 24'!$B:$AX,42,FALSE),0)-I36 -> 0
B37: Spring Term 2025 Forecast | E37: 0 | G37: 910 | I37: =E37*G37 -> 0
P38: =E39*G39-I39 -> 0 | Q38: Check revised ind budget DAF
B39: Total Disability Access Funding to date | E39: =SUM(E35:E37) -> 0 | I39: =SUM(I35:I37) -> 0 | O39: =E39*G37-I39 -> 0
B41: FEL Spring Term 2024 Adjustment Payment | I41: Indicative Funding £
B42: FEL Spring Term 2024 Adjustment Payment | I42: =VLOOKUP($D$7,'[4]Autumn 24'!$B:$AG,18,FALSE) -> 0 | O42: =VLOOKUP($D$7,'[4]Autumn 24'!$B:$AG,18,FALSE)-I42 -> 0
B43: FEL Summer Term 2024 Adjustment Payment | I43: =VLOOKUP($D$7,'[4]Autumn 24'!$B:$AI,34,FALSE) -> 0 | O43: =VLOOKUP($D$7,'[4]Autumn 24'!$B:$AI,34,FALSE)-I43 -> 0
B44: Providers will received an email from the EY Funding Team detailing any ajdustment payments. Please note that funding may be adjusted at a previous hourly funding rate.
B46: Maintained Nursery School Funding (MNS) | I46: =IFERROR(VLOOKUP($D$7,'[4]Autumn 24'!$B:$Q,16,FALSE),0) -> 0 | O46: =IFERROR(VLOOKUP($D$7,'[5]Summer 24'!$B:$P,15,FALSE),0)-I46 -> 0
B48: Indicative Funding for 2024/25 to date (purely based on FEL hours) | I48: Indicative Funding £
B49: FEL Funding only | I49: =I25 -> 120794.4
B50: Total Revised Indicative Budget 2024/25 | I50: =SUM(I49:I49) -> 120794.4 | O50: =VLOOKUP($D$7,'[4]Autumn 24'!$B:$N,13,FALSE)-I50 -> 0
B52: *Early Years Budget Grant (EYBG) payable at £0.11 or £0.50 (MNS) per hour from 1/9/24 to 31/3/25
B54: Note: This is the Autumn 2024 revised indicative budget produced to assist you in updating financial records.
B55: This revised indicative budget has been updated to include Summer & Autumn 24 actual FEL data claimed.
B56: There will be no change to cash advances to Maintained Schools as a result of this data set.
B59: Note: This is an indicative budget which is produced to assist FEL Providers with a tool for budgeting FEL income. This indicative budget is based on actual hours
B60: of participation in Spring 19, Summer 19 and Autumn 19 and has been adjusted for the number of weeks in the 2020/21 terms. FEL Providers will be paid for
B61: actual pupil participation hours of attendance in Summer 2020, Autumn 2020 and Spring 2021, using the £ per hour rate shown above.
B64: Any queries please contact: Lorraine.fox@sheffield.gov.uk
B65: Telephone: 0114 474 2034
B69: Angram Bank Primary School | C69: 1 | D69: 0047234000
B70: Arbourthorne Community Primary | C70: 2 | D70: 00073429
B71: Ballifield Primary School | C71: 3 | D71: 00072281
B72: Beighton Nursery Infant School | C72: 4 | D72: 00072241
B73: Brightside Nursery and Infant School | C73: 5 | D73: 07201400
B74: Broomhall | C74: 6 | D74: 07100000
B75: Brunswick Primary School | C75: 7 | D75: 00072325
B76: Carfield Primary School | C76: 8 | D76: 07234400
B77: Dobcroft Infant School (FEL) | C77: 9 | D77: 07228300
B78: Dore Pre-School | C78: 10 | D78: 07236400
B79: Grace Owen | C79: 11 | D79: 00071002
B80: Halfway Nursery Infant School | C80: 12 | D80: 00072252
B81: Meersbrook Bank Primary School | C81: 13 | D81: 00072081
B82: Netherthorpe Primary School | C82: 14 | D82: 00072272
B83: Pipworth Community Primary School | C83: 15 | D83: 00073433
B84: Prince Edward Primary School | C84: 16 | D84: 00072347
B85: Reignhead Primary School | C85: 17 | D85: 00072334
B86: Rivelin Primary School | C86: 18 | D86: 00072338
B87: Royd Nursery Infant School | C87: 19 | D87: 00072306
B88: Sharrow Primary School | C88: 20 | D88: 00072369
B89: Shooter's Grove Primary School | C89: 21 | D89: 00072349
B90: Shortbrook Primary (Ladybirds) | C90: 22 | D90: 00072360
B91: St Theresa's Catholic Primary School | C91: 23 | D91: 00075208
B92: Stradbroke Primary School | C92: 24 | D92: 00072350
B93: Walkley Primary School | C93: 25 | D93: 00072351
B94: Watercliffe Meadow Primary | C94: 26 | D94: 00073432
B95: Waterthorpe Nursery Infant School | C95: 27 | D95: 00072319
B96: Westways Primary School | C96: 28 | D96: 00072352

Sheet Nursery 3&4 Maintained (hidden)
B2: Nursery Free Entitlement Funding 3 & 4 Year Olds Indicative Budget 2018-19
B5: Provider::
B6: 40
B7: INTEGRA No: | D7: =VLOOKUP(B6,C57:D96,2,FALSE) -> 00072327
B10: Funding Rate per pupil hour £
B11: Base Rate Funding per Pupil £ | I11: 4.07
B12: Deprivation Hourly Base Rate £ | I12: =VLOOKUP($D$7,'[7]1819'!$C:$AB,25,FALSE) -> 105569.7
B13: 2018/19 Hourly FEL Rate | I13: =VLOOKUP($D$7,'[7]1819'!$C:$AL,36,FALSE) -> 120515.842 | L13: =VLOOKUP($D$7,'[8]Budget Build'!$C:$AL,35,FALSE)-I13 -> 
I14: =SUM(I11:I12)-I13 -> -14942.072
B16: Funding Breakdown | E16: Hours | G16: £/Hour | I16: Indicative Funding £
B18: Summer Term (2018) Forecast | E18: =VLOOKUP($D$7,'[7]1819'!$C:$T,15,FALSE) -> 0
B19: Autumn Term (2018) Forecast | E19: =VLOOKUP($D$7,'[7]1819'!$C:$T,16,FALSE) -> 11067
B20: Spring Term (2019) Forecast | E20: =VLOOKUP($D$7,'[7]1819'!$C:$T,17,FALSE) -> 7086.8
B22: Funding Based on Indicative Hours: | E22: =SUM(E18:E21) -> 18153.8 | G22: =I22/E22 -> 0.4159663542 | I22: =VLOOKUP($D$7,'[7]1819'!$C:$AC,27,FALSE) -> 7551.37 | L22: =E22*G22-I22 -> 0 | N22: `
E23: =VLOOKUP($D$7,'[7]1819'!$C:$T,18,FALSE)-E22 -> -10369.1 | I23: =E22*G22-I22 -> 0
B25: Early Years Pupil Premium (EYPP) Funding Breakdown | E25: Hours | G25: £/Hour | I25: Indicative Funding £
B27: Summer Term (2018) EYPP Forecast | E27: =VLOOKUP($D$7,'[7]1819'!$C:$AH,28,FALSE) -> 113121.07
B28: Autumn Term (2018) EYPP Forecast | E28: =VLOOKUP($D$7,'[7]1819'!$C:$AH,29,FALSE) -> 5913
B29: Spring Term (2019) EYPP Forecast | E29: =VLOOKUP($D$7,'[7]1819'!$C:$AH,30,FALSE) -> 3082.8
B31: Funding for Early Years Pupil Premium: | E31: =SUM(E27:E29) -> 122116.87 | G31: 0.53 | I31: =IF(ISERROR(E31*G31),2,E31*G31) -> 64721.9411
I32: =VLOOKUP($D$7,'[7]1819'!$C:$AH,32,FALSE)-I31 -> -50769.5411
B34: Indicative Funding consists of:
B35: Base Funding at £4.07 per hour | I35: =VLOOKUP($D$7,'[7]1819'!$C:$AB,24,FALSE) -> 0 | L35: =E22*I11-I35 -> 73885.966
B36: Deprivation Funding at £0.30 per hour | I36: =VLOOKUP($D$7,'[7]1819'!$C:$AB,26,FALSE) -> 0.29 | L36: =E22*I12-I36 -> 1916491220
B37: EYPP Funding at £0.53 per hour | I37: =VLOOKUP($D$7,'[7]1819'!$C:$AH,32,FALSE) -> 13952.4 | L37: =E31*G31-I37 -> 50769.5411
B38: Maintained Nursery School Supplement | I38: =VLOOKUP($D$7,'[7]1819'!$C:$AJ,34,FALSE) -> 120515.842
B39: Total Indicative Budget 2018/19 | I39: =VLOOKUP($D$7,'[7]1819'!$C:$AK,35,FALSE) -> 0 | L39: =E22*G22+E31*G31-I39 -> 72273.3111
I40: =SUM(I35:I38)-I39 -> 134468.532
B42: Standard Number of weeks in each term | I42: Weeks
B43: Summer Term 2018 | I43: 13
B44: Autumn Term 2018 | I44: 14
B45: Spring Term 2019 | I45: 11
I46: =SUM(I43:I45) -> 38
B49: Note: This is an indicative budget only and Providers will actually be paid on the basis of participation pupil hours of attendance in Summer 2018
B50: Autumn 2018 and Spring 2019, using the £ per hour rate shown above plus any actual EYPP hours and any DAF pupils.
B51: Maintained Schools: This budget will be used for your cash advance.
B54: Any queries please contact: lorraine.fox@sheffield.gov.uk
B55: Telephone: 2735817
B57: Angram Bank Primary School | C57: 1 | D57: 00072342
B58: Anns Grove Primary School | C58: 2 | D58: 00072343
B59: Arbourthorne Community Primary | C59: 3 | D59: 00073429
B60: Ballifield Primary School | C60: 4 | D60: 00072281
B61: Bankwood Primary (FEL previously at YCC) | C61: 5 | D61: 00072322
B62: Beighton Nursery Infant School | C62: 6 | D62: 00072241
B63: Brightside Nursery and Infant School | C63: 7 | D63: 07201400
B64: Broomhall | C64: 8 | D64: 07100000
B65: Brunswick Primary School | C65: 9 | D65: 00072325
B66: Carfield Primary School | C66: 10 | D66: 07234400
B67: Gleadless Primary School | C67: 11 | D67: 07203600
B68: Grace Owen | C68: 12 | D68: 00071002
B69: Halfway Nursery Infant School | C69: 13 | D69: 00072252
B70: Malin Bridge Primary School | C70: 14 | D70: 07235800
B71: Meersbrook Bank Primary School | C71: 15 | D71: 00072081
B72: Netherthorpe Primary School | C72: 16 | D72: 00072272
B73: Norfolk Community Primary School | C73: 17 | D73: 00072000
B74: Owler Brook Nursery and Infant School | C74: 18 | D74: 00072093
B75: Pipworth Community Primary School | C75: 19 | D75: 00073433
B76: Prince Edward Primary School | C76: 20 | D76: 00072347
B77: Pye Bank CE Primary School | C77: 21 | D77: 00072366
B78: Reignhead Primary School | C78: 22 | D78: 00072334
B79: Rivelin Primary School | C79: 23 | D79: 00072338
B80: Royd Nursery Infant School | C80: 24 | D80: 00072306
B81: Sharrow Primary School | C81: 25 | D81: 00072369
B82: Shooter's Grove Primary School | C82: 26 | D82: 00072349
B83: Shortbrook Primary (Ladybirds) | C83: 27 | D83: 00072360
B84: Springfield Primary School | C84: 28 | D84: 00072329
B85: St Theresa's Catholic Primary School | C85: 29 | D85: 00075208
B86: Stocksbridge Nursery Infant School | C86: 30 | D86: 00072302
B87: Stradbroke Primary School | C87: 31 | D87: 00072350
B88: Walkley Primary School | C88: 32 | D88: 00072351
B89: Watercliffe Meadow Primary | C89: 33 | D89: 00073432
B90: Waterthorpe Nursery Infant School | C90: 34 | D90: 00072319
B91: Westways Primary School | C91: 35 | D91: 00072352
B92: Wharncliffe Side Primary School | C92: 36 | D92: 00072311
B93: Whiteways Primary School | C93: 37 | D93: 00072040
B94: Woodhouse West Primary School | C94: 38 | D94: 00072139
B95: Woodseats Primary School | C95: 39 | D95: 00072324
B96: Woodthorpe Community Primary School | C96: 40 | D96: 00072327

Sheet School List (hidden)
C1: 2 | E1: 6 | F1: 1 | H1: 3 | I1: 4 | J1: 5 | K1: 7 | L1: 8 | M1: 9
A2: LxSTAB | B2: URN | C2: School_Name | D2: Ref | E2: OEO BU | F2: DfE | G2: Prev DfE | H2: Academy Type | I2: Phase | K2: Family of Schools
A3: 3732001 | B3: 106982 | C3: Abbey Lane Primary School | E3: 72001 | F3: 2001 | H3: 0 | I3: Primary | J3: Maintained Primary | K3: Meadowhead | M3: 0 | O3: 3732001 | P3: Abbey Lane Primary School | Q3: Maintained Primary | R3: pri | S3: 0 | U3: 3732001 | V3: Abbey Lane Primary School | W3: Primary | X3: 0 | Y3: 0
A4: 3732318 | B4: 107063 | C4: Acres Hill Community Primary School | E4: 72318 | F4: 2318 | H4: 0 | I4: Primary | J4: Maintained Primary | K4: Park Academy | M4: 0 | O4: 3732318 | P4: Acres Hill Community Primary School | Q4: Maintained Primary | R4: pri | S4: 0 | U4: 3732318 | V4: Acres Hill | W4: Primary | X4: 0 | Y4: 0
A5: 3732342 | B5: 107085 | C5: Angram Bank Primary School | E5: 72342 | F5: 2342 | H5: 0 | I5: Primary | J5: Maintained Primary | K5: Ecclesfield | M5: 0 | O5: 3732342 | P5: Angram Bank Primary School | Q5: Maintained Primary | R5: pri | S5: 0 | U5: 3732342 | V5: Angram Bank Primary School | W5: Primary | X5: 0 | Y5: 0
A6: 3732343 | B6: 107086 | C6: Anns Grove Primary School | E6: 72343 | F6: 2343 | H6: 0 | I6: Primary | J6: Maintained Primary | K6: Newfield | M6: 0 | O6: 3732343 | P6: Anns Grove Primary School | Q6: Maintained Primary | R6: pri | S6: 0 | U6: 3732343 | V6: Anns Grove Primary School | W6: Primary | X6: 0 | Y6: 0
A7: 3733429 | B7: 133994 | C7: Arbourthorne Community Primary School | E7: 73429 | F7: 3429 | H7: 0 | I7: Primary | J7: Maintained Primary | K7: Springs Academy | M7: 0 | O7: 3733429 | P7: Arbourthorne Community Primary School | Q7: Maintained Primary | R7: pri | S7: 0 | U7: 3733429 | V7: Arbourthorne Community Primary | W7: Primary | X7: 0 | Y7: 0
A8: 3732340 | B8: 107083 | C8: Athelstan Primary School | E8: 72340 | F8: 2340 | H8: 0 | I8: Primary | J8: Maintained Primary | K8: Handsworth Grange | M8: 0 | O8: 3732340 | P8: Athelstan Primary School | Q8: Maintained Primary | R8: pri | S8: 0 | U8: 3732340 | V8: Athelstan Primary School | W8: Primary | X8: 0 | Y8: 0
A9: 3732281 | B9: 107047 | C9: Ballifield Primary School | E9: 72281 | F9: 2281 | H9: 0 | I9: Primary | J9: Maintained Primary | K9: Handsworth Grange | M9: 0 | O9: 3732281 | P9: Ballifield Primary School | Q9: Maintained Primary | R9: pri | S9: 0 | U9: 3732281 | V9: Ballifield Primary | W9: Primary | X9: 0 | Y9: 0
A10: 3732322 | B10: 107066 | C10: Bankwood Community Primary School | E10: 72322 | F10: 2322 | H10: 0 | I10: Primary | J10: Maintained Primary | K10: Newfield | M10: 0 | O10: 3732322 | P10: Bankwood Community Primary School | Q10: Maintained Primary | R10: pri | S10: 0 | U10: 3732322 | V10: Bankwood Primary School | W10: Primary | X10: 0 | Y10: 0
A11: 3732274 | B11: 107044 | C11: Beck Primary School | E11: 72274 | F11: 2274 | H11: 0 | I11: Primary | J11: Maintained Primary | K11: Firth Park | M11: 0 | O11: 3732274 | P11: Beck Primary School | Q11: Maintained Primary | R11: pri | S11: 0 | U11: 3732274 | V11: Beck Primary School | W11: Primary | X11: 0 | Y11: 0
A12: 3732241 | B12: 107036 | C12: Beighton Nursery and Infant School | E12: 72241 | F12: 2241 | H12: 0 | I12: Primary | J12: Maintained Primary | K12: Westfield | M12: 0 | O12: 3732241 | P12: Beighton Nursery and Infant School | Q12: Maintained Primary | R12: pri | S12: 0 | U12: 3732241 | V12: Beighton Nursery and Infants | W12: Primary | X12: 0 | Y12: 0
A13: 3732353 | B13: 107096 | C13: Birley Community Primary School | E13: 72353 | F13: 2353 | H13: 0 | I13: Primary | J13: Maintained Primary | K13: Birley | M13: 0 | O13: 3732353 | P13: Birley Community Primary School | Q13: Maintained Primary | R13: pri | S13: 0 | U13: 3732353 | V13: Birley Primary School | W13: Primary | X13: 0 | Y13: 0
A14: 3732323 | B14: 107067 | C14: Birley Spa Community Primary School | E14: 72323 | F14: 2323 | H14: 0 | I14: Primary | J14: Maintained Primary | K14: Birley | M14: 0 | O14: 3732323 | P14: Birley Spa Community Primary School | Q14: Maintained Primary | R14: pri | S14: 0 | U14: 3732323 | V14: Birley Spa Community Primary | W14: Primary | X14: 0 | Y14: 0
A15: 3732328 | B15: 107072 | C15: Bradfield Dungworth Primary School | E15: 72328 | F15: 2328 | H15: 0 | I15: Primary | J15: Maintained Primary | K15: Bradfield | M15: 0 | O15: 3732328 | P15: Bradfield Dungworth Primary School | Q15: Maintained Primary | R15: pri | S15: 0 | U15: 3732328 | V15: Bradfield Dungworth | W15: Primary | X15: 0 | Y15: 0
A16: 3732233 | B16: 107033 | C16: Bradway Primary School | E16: 72233 | F16: 2233 | H16: 0 | I16: Primary | J16: Maintained Primary | K16: Meadowhead | M16: 0 | O16: 3732233 | P16: Bradway Primary School | Q16: Maintained Primary | R16: pri | S16: 0 | U16: 3732233 | V16: Bradway Primary | W16: Primary | X16: 0 | Y16: 0
A17: 3732014 | B17: 106987 | C17: Brightside Nursery and Infant School | E17: 72014 | F17: 2014 | H17: 0 | I17: Primary | J17: Maintained Primary | K17: Hinde House | M17: 0 | O17: 3732014 | P17: Brightside Nursery and Infant School | Q17: Maintained Primary | R17: pri | S17: 0 | U17: 3732014 | V17: Brightside Nursery Inf School | W17: Primary | X17: 0 | Y17: 0
A18: 3732246 | B18: 107037 | C18: Brook House Junior School | E18: 72246 | F18: 2246 | H18: 0 | I18: Primary | J18: Maintained Primary | K18: Westfield | M18: 0 | O18: 3732246 | P18: Brook House Junior School | Q18: Maintained Primary | R18: pri | S18: 0 | U18: 3732246 | V18: Brook House Junior School | W18: Primary | X18: 0 | Y18: 0
A19: 3735204 | B19: 107154 | C19: Broomhill Infant School | E19: 75204 | F19: 5204 | H19: 0 | I19: Primary | J19: Maintained Primary | K19: King Edward | M19: 0 | O19: 3735204 | P19: Broomhill Infant School | Q19: Maintained Primary | R19: pri | S19: 0 | U19: 3735204 | V19: Broomhill Infant School | W19: Primary | X19: 0 | Y19: 0
A20: 3732325 | B20: 107069 | C20: Brunswick Community Primary School | E20: 72325 | F20: 2325 | H20: 0 | I20: Primary | J20: Maintained Primary | K20: Handsworth Grange | M20: 0 | O20: 3732325 | P20: Brunswick Community Primary School | Q20: Maintained Primary | R20: pri | S20: 0 | U20: 3732325 | V20: Brunswick Community Primary | W20: Primary | X20: 0 | Y20: 0
A21: 3732095 | B21: 107008 | C21: Byron Wood Primary School | E21: 72095 | F21: 2095 | H21: 0 | I21: Primary | J21: Maintained Primary | K21: Fir Vale | M21: 0 | O21: 3732095 | P21: Byron Wood Primary School | Q21: Maintained Primary | R21: pri | S21: 0 | U21: 3732095 | V21: Byron Wood | W21: Primary | X21: 0 | Y21: 0
A22: 3732344 | B22: 107087 | C22: Carfield Primary School | E22: 72344 | F22: 2344 | H22: 0 | I22: Primary | J22: Maintained Primary | K22: Newfield | M22: 0 | O22: 3732344 | P22: Carfield Primary School | Q22: Maintained Primary | R22: pri | S22: 0 | U22: 3732344 | V22: Carfield Primary School | W22: Primary | X22: 0 | Y22: 0
A23: 3732023 | B23: 106988 | C23: Carter Knowle Junior School | E23: 72023 | F23: 2023 | H23: 0 | I23: Primary | J23: Maintained Primary | K23: King Ecgbert | M23: 0 | O23: 3732023 | P23: Carter Knowle Junior School | Q23: Maintained Primary | R23: pri | S23: 0 | U23: 3732023 | V23: Carter Knowle Junior | W23: Primary | X23: 0 | Y23: 0
A24: 3732354 | B24: 107097 | C24: Charnock Hall Primary School | E24: 72354 | F24: 2354 | H24: 0 | I24: Primary | J24: Maintained Primary | K24: Birley | M24: 0 | O24: 3732354 | P24: Charnock Hall Primary School | Q24: Maintained Primary | R24: pri | S24: 0 | U24: 3732354 | V24: Charnock Hall Primary School | W24: Primary | X24: 0 | Y24: 0
A25: 3735200 | B25: 107150 | C25: Clifford CofE Infant School | E25: 75200 | F25: 5200 | H25: 0 | I25: Primary | J25: Maintained Primary | K25: King Edward | M25: 0 | O25: 3735200 | P25: Clifford CofE Infant School | Q25: Maintained Primary | R25: pri | S25: 0 | U25: 3735200 | V25: Clifford C of E Infant School | W25: Primary | X25: 0 | Y25: 0
A26: 3732312 | B26: 107060 | C26: Coit Primary School | E26: 72312 | F26: 2312 | H26: 0 | I26: Primary | J26: Maintained Primary | K26: Ecclesfield | M26: 0 | O26: 3732312 | P26: Coit Primary School | Q26: Maintained Primary | R26: pri | S26: 0 | U26: 3732312 | V26: Coit Primary | W26: Primary | X26: 0 | Y26: 0
A27: 3732026 | B27: 107041 | C27: Concord Junior School | E27: 62026 | F27: 2026 | G27: 2263 | H27: Recoupment Academy | I27: Primary | J27: Mainstream Academy | K27: Hinde House | M27: 2263 | O27: 3732026 | P27: Concord Junior School | Q27: Mainstream Academy | R27: pri | S27: 0 | U27: 3732026 | V27: Concord Junior School | W27: Primary | X27: Recoupment Academy | Y27: 0
A28: 3733422 | B28: 107117 | C28: Deepcar St John's Church of England Junior School | E28: 73422 | F28: 3422 | H28: 0 | I28: Primary | J28: Maintained Primary | K28: Stocksbridge | M28: 0 | O28: 3733422 | P28: Deepcar St John's Church of England Junior School | Q28: Maintained Primary | R28: pri | S28: 0 | U28: 3733422 | V28: Deepcar St John's C E Jnr Sch | W28: Primary | X28: 0 | Y28: 0
A29: 3732283 | B29: 107048 | C29: Dobcroft Infant School | E29: 72283 | F29: 2283 | H29: 0 | I29: Primary | J29: Maintained Primary | K29: Silverdale | M29: 0 | O29: 3732283 | P29: Dobcroft Infant School | Q29: Maintained Primary | R29: pri | S29: 0 | U29: 3732283 | V29: Dobcroft Infant School | W29: Primary | X29: 0 | Y29: 0
A30: 3732239 | B30: 107035 | C30: Dobcroft Junior School | E30: 72239 | F30: 2239 | H30: 0 | I30: Primary | J30: Maintained Primary | K30: Silverdale | M30: 0 | O30: 3732239 | P30: Dobcroft Junior School | Q30: Maintained Primary | R30: pri | S30: 0 | U30: 3732239 | V30: Dobcroft Junior School | W30: Primary | X30: 0 | Y30: 0
A31: 3732364 | B31: 132152 | C31: Dore Primary School | E31: 72364 | F31: 2364 | H31: 0 | I31: Primary | J31: Maintained Primary | K31: King Ecgbert | M31: 0 | O31: 3732364 | P31: Dore Primary School | Q31: Maintained Primary | R31: pri | S31: 0 | U31: 3732364 | V31: Dore Primary School | W31: Primary | X31: 0 | Y31: 0
A32: 3733008 | B32: 107105 | C32: Ecclesall Church of England Junior School | E32: 73008 | F32: 3008 | H32: 0 | I32: Primary | J32: Maintained Primary | K32: High Storrs | M32: 0 | O32: 3733008 | P32: Ecclesall Church of England Junior School | Q32: Maintained Primary | R32: pri | S32: 0 | U32: 3733008 | V32: Ecclesall CE Junior School | W32: Primary | X32: 0 | Y32: 0
A33: 3732206 | B33: 107025 | C33: Ecclesall Infant School | E33: 72206 | F33: 2206 | H33: 0 | I33: Primary | J33: Maintained Primary | K33: High Storrs | M33: 0 | O33: 3732206 | P33: Ecclesall Infant School | Q33: Maintained Primary | R33: pri | S33: 0 | U33: 3732206 | V33: Ecclesall Infant School | W33: Primary | X33: 0 | Y33: 0
A34: 3732080 | B34: 107001 | C34: Ecclesfield Primary School | E34: 72080 | F34: 2080 | H34: 0 | I34: Primary | J34: Maintained Primary | K34: Ecclesfield | M34: 0 | O34: 3732080 | P34: Ecclesfield Primary School | Q34: Maintained Primary | R34: pri | S34: 0 | U34: 3732080 | V34: Ecclesfield Primary School | W34: Primary | X34: 0 | Y34: 0
A35: 3733426 | B35: 107120 | C35: Emmanuel Anglican/Methodist Junior School | E35: 73426 | F35: 3426 | H35: 0 | I35: Primary | J35: Maintained Primary | K35: Westfield | M35: 0 | O35: 3733426 | P35: Emmanuel Anglican/Methodist Junior School | Q35: Maintained Primary | R35: pri | S35: 0 | U35: 3733426 | V35: Emmanuel Junior School (Anglican Methodist Aided) | W35: Primary | X35: 0 | Y35: 0
A36: 3732028 | B36: 134231 | C36: Emmaus Catholic and CofE Primary School | E36: 62028 | F36: 2028 | G36: 3430 | H36: Recoupment Academy | I36: Primary | J36: Mainstream Academy | K36: Park Academy | M36: 3430 | O36: 3732028 | P36: Emmaus Catholic and CofE Primary School | Q36: Mainstream Academy | R36: pri | S36: 0 | U36: 3732028 | V36: Emmaus Catholic and Church of England Primary School | W36: Primary | X36: Recoupment Academy | Y36: 0
A37: 3732365 | B37: 133325 | C37: Firs Hill Community Primary School | E37: 72365 | F37: 2365 | H37: 0 | I37: Primary | J37: Maintained Primary | K37: Fir Vale | M37: 0 | O37: 3732365 | P37: Firs Hill Community Primary School | Q37: Maintained Primary | R37: pri | S37: 0 | U37: 3732365 | V37: Firs Hill Community Primary | W37: Primary | X37: 0 | Y37: 0
A38: 3732010 | B38: 139134 | C38: Fox Hill Primary | E38: 62010 | F38: 2010 | G38: 2330 | H38: Recoupment Academy | I38: Primary | J38: Mainstream Academy | K38: Yewlands | M38: 2330 | O38: 3732010 | P38: Fox Hill Primary | Q38: Mainstream Academy | R38: pri | S38: 0 | U38: 3732010 | V38: Fox Hill Primary School | W38: Primary | X38: Recoupment Academy | Y38: 0
A39: 3732036 | B39: 106991 | C39: Gleadless Primary School | E39: 72036 | F39: 2036 | H39: 0 | I39: Primary | J39: Maintained Primary | K39: Birley | M39: 0 | O39: 3732036 | P39: Gleadless Primary School | Q39: Maintained Primary | R39: pri | S39: 0 | U39: 3732036 | V39: Gleadless Primary School | W39: Primary | X39: 0 | Y39: 0
A40: 3732305 | B40: 139297 | C40: Greengate Lane Academy | E40: 62305 | F40: 2305 | H40: Recoupment Academy | I40: Primary | J40: Mainstream Academy | K40: Ecclesfield | M40: 0 | O40: 3732305 | P40: Greengate Lane Academy | Q40: Mainstream Academy | R40: pri | S40: 0 | U40: 3732305 | V40: Greengate Lane Academy | W40: Primary | X40: Recoupment Academy | Y40: 0
A41: 3732341 | B41: 107084 | C41: Greenhill Primary School | E41: 72341 | F41: 2341 | H41: 0 | I41: Primary | J41: Maintained Primary | K41: Meadowhead | M41: 0 | O41: 3732341 | P41: Greenhill Primary School | Q41: Maintained Primary | R41: pri | S41: 0 | U41: 3732341 | V41: Greenhill Primary School | W41: Primary | X41: 0 | Y41: 0
A42: 3732129 | B42: 107019 | C42: Greenlands (High Hazels) Junior School | E42: 62129 | F42: 2129 | H42: Recoupment Academy | I42: Primary | J42: Mainstream Academy | K42: Park Academy | M42: 0 | O42: 3732129 | P42: Greenlands (High Hazels) Junior School | Q42: Mainstream Academy | R42: pri | S42: 0 | U42: 3732129 | V42: Greenlands Junior School | W42: Primary | X42: 0 | Y42: 0
A43: 3732131 | B43: 107020 | C43: Greenlands (High Hazels) Nursery Infant School | E43: 62131 | F43: 2131 | H43: Recoupment Academy | I43: Primary | J43: Mainstream Academy | K43: Park Academy | M43: 0 | O43: 3732131 | P43: Greenlands (High Hazels) Nursery Infant School | Q43: Mainstream Academy | R43: pri | S43: 0 | U43: 3732131 | V43: Greenlands Nursery Infants | W43: Primary | X43: 0 | Y43: 0
A44: 3732296 | B44: 107051 | C44: Grenoside Community Primary School | E44: 72296 | F44: 2296 | H44: 0 | I44: Primary | J44: Maintained Primary | K44: Yewlands | M44: 0 | O44: 3732296 | P44: Grenoside Community Primary School | Q44: Maintained Primary | R44: pri | S44: 0 | U44: 3732296 | V44: Grenoside Primary School | W44: Primary | X44: 0 | Y44: 0
A45: 3732356 | B45: 107098 | C45: Greystones Primary School | E45: 72356 | F45: 2356 | H45: 0 | I45: Primary | J45: Maintained Primary | K45: High Storrs | M45: 0 | O45: 3732356 | P45: Greystones Primary School | Q45: Maintained Primary | R45: pri | S45: 0 | U45: 3732356 | V45: GREYSTONES PRIMARY SCHOOL | W45: Primary | X45: 0 | Y45: 0
A46: 3732279 | B46: 107046 | C46: Halfway Junior School | E46: 72279 | F46: 2279 | H46: 0 | I46: Primary | J46: Maintained Primary | K46: Westfield | M46: 0 | O46: 3732279 | P46: Halfway Junior School | Q46: Maintained Primary | R46: pri | S46: 0 | U46: 3732279 | V46: Halfway Junior School | W46: Primary | X46: 0 | Y46: 0
A47: 3732252 | B47: 107038 | C47: Halfway Nursery Infant School | E47: 72252 | F47: 2252 | H47: 0 | I47: Primary | J47: Maintained Primary | K47: Westfield | M47: 0 | O47: 3732252 | P47: Halfway Nursery Infant School | Q47: Maintained Primary | R47: pri | S47: 0 | U47: 3732252 | V47: Halfway Nursery Infant School | W47: Primary | X47: 0 | Y47: 0
A48: 3732357 | B48: 107099 | C48: Hallam Primary School | E48: 72357 | F48: 2357 | H48: 0 | I48: Primary | J48: Maintained Primary | K48: Tapton | M48: 0 | O48: 3732357 | P48: Hallam Primary School | Q48: Maintained Primary | R48: pri | S48: 0 | U48: 3732357 | V48: Hallam Primary School | W48: Primary | X48: 0 | Y48: 0
A49: 3732004 | B49: 138512 | C49: Hartley Brook Primary School | E49: 62004 | F49: 2004 | H49: Recoupment Academy | I49: Primary | J49: Mainstream Academy | K49: Firth Park | M49: 0 | O49: 3732004 | P49: Hartley Brook Primary School | Q49: Mainstream Academy | R49: pri | S49: 0 | U49: 3732004 | V49: Hartley Brook Academy | W49: Primary | X49: Recoupment Academy | Y49: 0
A50: 3732047 | B50: 138127 | C50: Hatfield Primary School | E50: 62047 | F50: 2047 | H50: Recoupment Academy | I50: Primary | J50: Mainstream Academy | K50: Firth Park | M50: 0 | O50: 3732047 | P50: Hatfield Primary School | Q50: Mainstream Academy | R50: pri | S50: 0 | U50: 3732047 | V50: Hatfield Primary | W50: Primary | X50: Recoupment Academy | Y50: 0
A51: 3732297 | B51: 107052 | C51: High Green Primary School | E51: 72297 | F51: 2297 | H51: 0 | I51: Primary | J51: Maintained Primary | K51: Ecclesfield | M51: 0 | O51: 3732297 | P51: High Green Primary School | Q51: Maintained Primary | R51: pri | S51: 0 | U51: 3732297 | V51: High Green Primary School | W51: Primary | X51: 0 | Y51: 0
A52: 3732339 | B52: 107082 | C52: Hillsborough Primary School | E52: 62339 | F52: 2339 | H52: Recoupment Academy | I52: Primary | J52: Mainstream Academy | K52: Forge Valley | M52: 0 | O52: 3732339 | P52: Hillsborough Primary School | Q52: Mainstream Academy | R52: pri | S52: 0 | U52: 3732339 | V52: Hillsborough Primary School | W52: Primary | X52: Recoupment Academy | Y52: 0
A53: 3732213 | B53: 107026 | C53: Holt House Infant School | E53: 72213 | F53: 2213 | H53: 0 | I53: Primary | J53: Maintained Primary | K53: King Ecgbert | M53: 0 | O53: 3732213 | P53: Holt House Infant School | Q53: Maintained Primary | R53: pri | S53: 0 | U53: 3732213 | V53: Holt House Infant School & Children's Centre | W53: Primary | X53: 0 | Y53: 0
A54: 3732337 | B54: 107080 | C54: Hucklow Primary School | E54: 72337 | F54: 2337 | H54: 0 | I54: Primary | J54: Maintained Primary | K54: Firth Park | M54: 0 | O54: 3732337 | P54: Hucklow Primary School | Q54: Maintained Primary | R54: pri | S54: 0 | U54: 3732337 | V54: Hucklow Primary School | W54: Primary | X54: 0 | Y54: 0
A55: 3732060 | B55: 106995 | C55: Hunter's Bar Infant School | E55: 72060 | F55: 2060 | H55: 0 | I55: Primary | J55: Maintained Primary | K55: High Storrs | M55: 0 | O55: 3732060 | P55: Hunter's Bar Infant School | Q55: Maintained Primary | R55: pri | S55: 0 | U55: 3732060 | V55: Hunter's Bar Infant School | W55: Primary | X55: 0 | Y55: 0
A56: 3732058 | B56: 106994 | C56: Hunter's Bar Junior School | E56: 72058 | F56: 2058 | H56: 0 | I56: Primary | J56: Maintained Primary | K56: High Storrs | M56: 0 | O56: 3732058 | P56: Hunter's Bar Junior School | Q56: Maintained Primary | R56: pri | S56: 0 | U56: 3732058 | V56: Hunters Bar Junior | W56: Primary | X56: 0 | Y56: 0
A57: 3732063 | B57: 106996 | C57: Intake Primary School | E57: 72063 | F57: 2063 | H57: 0 | I57: Primary | J57: Maintained Primary | K57: City | M57: 0 | O57: 3732063 | P57: Intake Primary School | Q57: Maintained Primary | R57: pri | S57: 0 | U57: 3732063 | V57: Intake Primary School | W57: Primary | X57: 0 | Y57: 0
A58: 3732261 | B58: 107040 | C58: Limpsfield Junior School | E58: 72261 | F58: 2261 | H58: 0 | I58: Primary | J58: Maintained Primary | K58: Hinde House | M58: 0 | O58: 3732261 | P58: Limpsfield Junior School | Q58: Maintained Primary | R58: pri | S58: 0 | U58: 3732261 | V58: Limpsfield Junior School | W58: Primary | X58: 0 | Y58: 0
A59: 3732315 | B59: 139862 | C59: Lound Infant School | E59: 62315 | F59: 2315 | H59: Recoupment Academy | I59: Primary | J59: Mainstream Academy | K59: Ecclesfield | M59: 0 | O59: 3732315 | P59: Lound Infant School | Q59: Mainstream Academy | R59: pri | S59: 0 | U59: 3732315 | V59: Lound Infant School | W59: Primary | X59: Recoupment Academy | Y59: 0
A60: 3732298 | B60: 139863 | C60: Lound Junior School | E60: 62298 | F60: 2298 | H60: Recoupment Academy | I60: Primary | J60: Mainstream Academy | K60: Ecclesfield | M60: 0 | O60: 3732298 | P60: Lound Junior School | Q60: Mainstream Academy | R60: pri | S60: 0 | U60: 3732298 | V60: Lound Junior School | W60: Primary | X60: Recoupment Academy | Y60: 0
A61: 3732029 | B61: 107076 | C61: Lowedges Primary School | E61: 62029 | F61: 2029 | G61: 2333 | H61: Recoupment Academy | I61: Primary | J61: Mainstream Academy | K61: Meadowhead | M61: 2333 | O61: 3732029 | P61: Lowedges Primary School | Q61: Mainstream Academy | R61: pri | S61: 0 | U61: 3732029 | V61: Lowedges Junior Academy | W61: Primary | X61: Recoupment Academy | Y61: 0
A62: 3732368 | B62: 133484 | C62: Lower Meadow Primary School | E62: 72368 | F62: 2368 | H62: 0 | I62: Primary | J62: Maintained Primary | K62: Meadowhead | M62: 0 | O62: 3732368 | P62: Lower Meadow Primary School | Q62: Maintained Primary | R62: pri | S62: 0 | U62: 3732368 | V62: Lower Meadow Community Primary School | W62: Primary | X62: 0 | Y62: 0
A63: 3732070 | B63: 106997 | C63: Lowfield Community Primary School | E63: 72070 | F63: 2070 | H63: 0 | I63: Primary | J63: Maintained Primary | K63: King Ecgbert | M63: 0 | O63: 3732070 | P63: Lowfield Community Primary School | Q63: Maintained Primary | R63: pri | S63: 0 | U63: 3732070 | V63: Lowfield Primary | W63: Primary | X63: 0 | Y63: 0
A64: 3732292 | B64: 107049 | C64: Loxley Primary School | E64: 72292 | F64: 2292 | H64: 0 | I64: Primary | J64: Maintained Primary | K64: Bradfield | M64: 0 | O64: 3732292 | P64: Loxley Primary School | Q64: Maintained Primary | R64: pri | S64: 0 | U64: 3732292 | V64: Loxley Primary School | W64: Primary | X64: 0 | Y64: 0
A65: 3732072 | B65: 106999 | C65: Lydgate Infant School | E65: 72072 | F65: 2072 | H65: 0 | I65: Primary | J65: Maintained Primary | K65: Tapton | M65: 0 | O65: 3732072 | P65: Lydgate Infant School | Q65: Maintained Primary | R65: pri | S65: 0 | U65: 3732072 | V65: Lydgate Infant School | W65: Primary | X65: 0 | Y65: 0
A66: 3732071 | B66: 106998 | C66: Lydgate Junior School | E66: 72071 | F66: 2071 | H66: 0 | I66: Primary | J66: Maintained Primary | K66: Tapton | M66: 0 | O66: 3732071 | P66: Lydgate Junior School | Q66: Maintained Primary | R66: pri | S66: 0 | U66: 3732071 | V66: Lydgate Junior School | W66: Primary | X66: 0 | Y66: 0
A67: 3732358 | B67: 107100 | C67: Malin Bridge Primary School | E67: 72358 | F67: 2358 | H67: 0 | I67: Primary | J67: Maintained Primary | K67: Forge Valley | M67: 0 | O67: 3732358 | P67: Malin Bridge Primary School | Q67: Maintained Primary | R67: pri | S67: 0 | U67: 3732358 | V67: Malin Bridge School | W67: Primary | X67: 0 | Y67: 0
A68: 3732359 | B68: 107101 | C68: Manor Lodge Community Primary School | E68: 72359 | F68: 2359 | H68: 0 | I68: Primary | J68: Maintained Primary | K68: Springs Academy | M68: 0 | O68: 3732359 | P68: Manor Lodge Community Primary School | Q68: Maintained Primary | R68: pri | S68: 0 | U68: 3732359 | V68: Manor Lodge Community Primary | W68: Primary | X68: 0 | Y68: 0
A69: 3732012 | B69: 139137 | C69: Mansel Primary | E69: 62012 | F69: 2012 | G69: 2345 | H69: Recoupment Academy | I69: Primary | J69: Mainstream Academy | K69: Yewlands | M69: 2345 | O69: 3732012 | P69: Mansel Primary | Q69: Mainstream Academy | R69: pri | S69: 0 | U69: 3732012 | V69: Mansel Primary School | W69: Primary | X69: Recoupment Academy | Y69: 0
A70: 3732079 | B70: 107000 | C70: Marlcliffe Community Primary School | E70: 72079 | F70: 2079 | H70: 0 | I70: Primary | J70: Maintained Primary | K70: Forge Valley | M70: 0 | O70: 3732079 | P70: Marlcliffe Community Primary School | Q70: Maintained Primary | R70: pri | S70: 0 | U70: 3732079 | V70: Marlcliffe Primary School | W70: Primary | X70: 0 | Y70: 0
A71: 3732081 | B71: 107002 | C71: Meersbrook Bank Primary School | E71: 72081 | F71: 2081 | H71: 0 | I71: Primary | J71: Maintained Primary | K71: Newfield | M71: 0 | O71: 3732081 | P71: Meersbrook Bank Primary School | Q71: Maintained Primary | R71: pri | S71: 0 | U71: 3732081 | V71: Meersbrook Bank Primary School | W71: Primary | X71: 0 | Y71: 0
A72: 3732013 | B72: 139336 | C72: Meynell Community Primary School | E72: 62013 | F72: 2013 | G72: 2083 | H72: Recoupment Academy | I72: Primary | J72: Mainstream Academy | K72: Chaucer | M72: 2083 | O72: 3732013 | P72: Meynell Community Primary School | Q72: Mainstream Academy | R72: pri | S72: 0 | U72: 3732013 | V72: Meynell Primary School | W72: Primary | X72: Recoupment Academy | Y72: 0
A73: 3732346 | B73: 139544 | C73: Monteney Primary School | E73: 62346 | F73: 2346 | H73: Recoupment Academy | I73: Primary | J73: Mainstream Academy | K73: Yewlands | M73: 0 | O73: 3732346 | P73: Monteney Primary School | Q73: Mainstream Academy | R73: pri | S73: 0 | U73: 3732346 | V73: Monteney Primary School | W73: Primary | X73: Recoupment Academy | Y73: 0
A74: 3732257 | B74: 107039 | C74: Mosborough Primary School | E74: 72257 | F74: 2257 | H74: 0 | I74: Primary | J74: Maintained Primary | K74: Westfield | M74: 0 | O74: 3732257 | P74: Mosborough Primary School | Q74: Maintained Primary | R74: pri | S74: 0 | U74: 3732257 | V74: Mosborough Primary School | W74: Primary | X74: 0 | Y74: 0
A75: 3732092 | B75: 107006 | C75: Mundella Primary School | E75: 72092 | F75: 2092 | H75: 0 | I75: Primary | J75: Maintained Primary | K75: Newfield | M75: 0 | O75: 3732092 | P75: Mundella Primary School | Q75: Maintained Primary | R75: pri | S75: 0 | U75: 3732092 | V75: Mundella Primary School | W75: Primary | X75: 0 | Y75: 0
A76: 3732221 | B76: 107029 | C76: Nether Green Infant School | E76: 72221 | F76: 2221 | H76: 0 | I76: Primary | J76: Maintained Primary | K76: High Storrs | M76: 0 | O76: 3732221 | P76: Nether Green Infant School | Q76: Maintained Primary | R76: pri | S76: 0 | U76: 3732221 | V76: Nether Green Infant School | W76: Primary | X76: 0 | Y76: 0
A77: 3732087 | B77: 107004 | C77: Nether Green Junior School | E77: 72087 | F77: 2087 | H77: 0 | I77: Primary | J77: Maintained Primary | K77: High Storrs | M77: 0 | O77: 3732087 | P77: Nether Green Junior School | Q77: Maintained Primary | R77: pri | S77: 0 | U77: 3732087 | V77: Nether Green Junior School | W77: Primary | X77: 0 | Y77: 0
A78: 3732272 | B78: 107043 | C78: Netherthorpe Primary School | E78: 72272 | F78: 2272 | H78: 0 | I78: Primary | J78: Maintained Primary | K78: Tapton | M78: 0 | O78: 3732272 | P78: Netherthorpe Primary School | Q78: Maintained Primary | R78: pri | S78: 0 | U78: 3732272 | V78: Netherthorpe Primary School | W78: Primary | X78: 0 | Y78: 0
A79: 3732309 | B79: 107058 | C79: Nook Lane Junior School | E79: 72309 | F79: 2309 | H79: 0 | I79: Primary | J79: Maintained Primary | K79: Bradfield | M79: 0 | O79: 3732309 | P79: Nook Lane Junior School | Q79: Maintained Primary | R79: pri | S79: 0 | U79: 3732309 | V79: Nook Lane Junior School | W79: Primary | X79: 0 | Y79: 0
A80: 3732000 | B80: 130335 | C80: Norfolk Community Primary School | E80: 72000 | F80: 2000 | H80: 0 | I80: Primary | J80: Maintained Primary | K80: Springs Academy | M80: 0 | O80: 3732000 | P80: Norfolk Community Primary School | Q80: Maintained Primary | R80: pri | S80: 0 | U80: 3732000 | V80: Norfolk Primary School | W80: Primary | X80: 0 | Y80: 0
A81: 3733010 | B81: 107106 | C81: Norton Free Church of England Primary School | E81: 73010 | F81: 3010 | H81: 0 | I81: Primary | J81: Maintained Primary | K81: Newfield | M81: 0 | O81: 3733010 | P81: Norton Free Church of England Primary School | Q81: Maintained Primary | R81: pri | S81: 0 | U81: 3733010 | V81: Norton Free C of E School | W81: Primary | X81: 0 | Y81: 0
A82: 3734005 | C82: Oasis - Don Valley Academy 3-16 | E82: 64005 | F82: 4005 | H82: Recoupment Academy | I82: Primary | J82: Mainstream Academy | K82: 0 | M82: 0 | U82: 3734005 | V82: Oasis - Don Valley Academy 3-16 | W82: Primary | X82: Recoupment Academy | Y82: -3734005
A83: 3732018 | C83: Oasis - Fir Vale Academy | E83: 62018 | F83: 2018 | H83: Recoupment Academy | I83: Primary | J83: Mainstream Academy | K83: Fir Vale | M83: 0 | U83: 3732018 | V83: Oasis Academy Fir Vale | W83: Primary | X83: Recoupment Academy | Y83: -3732018
A84: 3732019 | C84: Oasis - Watermead Academy | E84: 62019 | F84: 2019 | H84: Recoupment Academy | I84: Primary | J84: Mainstream Academy | M84: 0 | U84: 3732019 | V84: Oasis Academy Watermead | W84: Primary | X84: Recoupment Academy | Y84: -3732019
A85: 3732313 | B85: 107061 | C85: Oughtibridge Primary School | E85: 72313 | F85: 2313 | H85: 0 | I85: Primary | J85: Maintained Primary | K85: Bradfield | M85: 0 | O85: 3732313 | P85: Oughtibridge Primary School | Q85: Maintained Primary | R85: pri | S85: 0 | U85: 3732313 | V85: OUGHTIBRIDGE PRIMARY SCHOOL | W85: Primary | X85: 0 | Y85: 0
A86: 3732093 | B86: 107007 | C86: Owler Brook Primary School | E86: 72093 | F86: 2093 | H86: 0 | I86: Primary | J86: Maintained Primary | K86: Fir Vale | M86: 0 | O86: 3732093 | P86: Owler Brook Primary School | Q86: Maintained Primary | R86: pri | S86: 0 | U86: 3732093 | V86: Owler Brook | W86: Primary | X86: 0 | Y86: 0
A87: 3733428 | B87: 107107 | C87: Parson Cross Church of England Primary School | E87: 73428 | F87: 3428 | H87: 0 | I87: Primary | J87: Maintained Primary | K87: Chaucer | M87: 0 | O87: 3733428 | P87: Parson Cross Church of England Primary School | Q87: Maintained Primary | R87: pri | S87: 0 | U87: 3733428 | V87: Parson Cross Primary School | W87: Primary | X87: 0 | Y87: 0
A88: 3732016 | B88: 139932 | C88: Pathways E-Act Primary Academy | E88: 62016 | F88: 2016 | G88: 2326 | H88: Recoupment Academy | I88: Primary | J88: Mainstream Academy | K88: Parkwood | M88: 2326 | O88: 3732016 | P88: Pathways E-Act Primary Academy | Q88: Mainstream Academy | R88: pri | S88: 0 | U88: 3732016 | V88: Pathways Academy E-ACT | W88: Primary | X88: Recoupment Academy | Y88: 0
A89: 3732332 | B89: 107075 | C89: Phillimore Community Primary School | E89: 72332 | F89: 2332 | H89: 0 | I89: Primary | J89: Maintained Primary | K89: Park Academy | M89: 0 | O89: 3732332 | P89: Phillimore Community Primary School | Q89: Maintained Primary | R89: pri | S89: 0 | U89: 3732332 | V89: Phillimore Comm Primary School | W89: Primary | X89: 0 | Y89: 0
A90: 3733433 | B90: 134751 | C90: Pipworth Community Primary School | E90: 73433 | F90: 3433 | H90: 0 | I90: Primary | J90: Maintained Primary | K90: Park Academy | M90: 0 | O90: 3733433 | P90: Pipworth Community Primary School | Q90: Maintained Primary | R90: pri | S90: 0 | U90: 3733433 | V90: Pipworth Primary School | W90: Primary | X90: 0 | Y90: 0
A91: 3733427 | B91: 139986 | C91: Porter Croft Church of England Primary Academy | E91: 63427 | F91: 3427 | H91: Recoupment Academy | I91: Primary | J91: Mainstream Academy | K91: High Storrs | M91: 0 | O91: 3733427 | P91: Porter Croft Church of England Primary Academy | Q91: Mainstream Academy | R91: pri | S91: 0 | U91: 3733427 | V91: Porter Croft C of E Primary Academy | W91: Primary | X91: Recoupment Academy | Y91: 0
A92: 3732347 | B92: 107090 | C92: Prince Edward Primary School | E92: 72347 | F92: 2347 | H92: 0 | I92: Primary | J92: Maintained Primary | K92: Springs Academy | M92: 0 | O92: 3732347 | P92: Prince Edward Primary School | Q92: Maintained Primary | R92: pri | S92: 0 | U92: 3732347 | V92: Prince Edward Primary School | W92: Primary | X92: 0 | Y92: 0
A93: 3732366 | B93: 133324 | C93: Pye Bank CofE Primary School | E93: 72366 | F93: 2366 | H93: 0 | I93: Primary | J93: Maintained Primary | K93: Parkwood | M93: 0 | O93: 3732366 | P93: Pye Bank CofE Primary School | Q93: Maintained Primary | R93: pri | S93: 0 | U93: 3732366 | V93: Pye Bank CofE Primary School | W93: Primary | X93: 0 | Y93: 0
A94: 3732363 | B94: 107005 | C94: Rainbow Forge Primary School | E94: 72363 | F94: 2363 | H94: 0 | I94: Primary | J94: Maintained Primary | K94: Birley | M94: 0 | O94: 3732363 | P94: Rainbow Forge Primary School | Q94: Maintained Primary | R94: pri | S94: 0 | U94: 3732363 | V94: Rainbow Forge | W94: Primary | X94: 0 | Y94: 0
A95: 3732334 | B95: 107077 | C95: Reignhead Primary School | E95: 72334 | F95: 2334 | H95: 0 | I95: Primary | J95: Maintained Primary | K95: Westfield | M95: 0 | O95: 3732334 | P95: Reignhead Primary School | Q95: Maintained Primary | R95: pri | S95: 0 | U95: 3732334 | V95: Reignhead Primary School | W95: Primary | X95: 0 | Y95: 0
A96: 3732338 | B96: 107081 | C96: Rivelin Primary School | E96: 72338 | F96: 2338 | H96: 0 | I96: Primary | J96: Maintained Primary | K96: Forge Valley | M96: 0 | O96: 3732338 | P96: Rivelin Primary School | Q96: Maintained Primary | R96: pri | S96: 0 | U96: 3732338 | V96: Rivelin Primary | W96: Primary | X96: 0 | Y96: 0
A97: 3732306 | B97: 107057 | C97: Royd Nursery and Infant School | E97: 72306 | F97: 2306 | H97: 0 | I97: Primary | J97: Maintained Primary | K97: Stocksbridge | M97: 0 | O97: 3732306 | P97: Royd Nursery and Infant School | Q97: Maintained Primary | R97: pri | S97: 0 | U97: 3732306 | V97: Royd Nursery Infant School | W97: Primary | X97: 0 | Y97: 0
A98: 3733401 | B98: 107111 | C98: Sacred Heart Catholic Primary School | E98: 63401 | F98: 3401 | H98: Recoupment Academy | I98: Primary | J98: Mainstream Academy | K98: Forge Valley | M98: 0 | O98: 3733401 | P98: Sacred Heart Catholic Primary School | Q98: Mainstream Academy | R98: pri | S98: 0 | U98: 3733401 | V98: Sacred Heart School A Catholic Voluntary Academy | W98: Primary | X98: Recoupment Academy | Y98: 0
A99: 3732369 | B99: 134302 | C99: Sharrow Nursery, Infant and Junior School | E99: 72369 | F99: 2369 | H99: 0 | I99: Primary | J99: Maintained Primary | K99: King Edward | M99: 0 | O99: 3732369 | P99: Sharrow Nursery, Infant and Junior School | Q99: Maintained Primary | R99: pri | S99: 0 | U99: 3732369 | V99: Sharrow School | W99: Primary | X99: 0 | Y99: 0
A100: 3732349 | B100: 107092 | C100: Shooter's Grove Primary School | E100: 72349 | F100: 2349 | H100: 0 | I100: Primary | J100: Maintained Primary | K100: Forge Valley | M100: 0 | O100: 3732349 | P100: Shooter's Grove Primary School | Q100: Maintained Primary | R100: pri | S100: 0 | U100: 3732349 | V100: Shooters Grove | W100: Primary | X100: 0 | Y100: 0
A101: 3732360 | B101: 107102 | C101: Shortbrook Primary School | E101: 72360 | F101: 2360 | H101: 0 | I101: Primary | J101: Maintained Primary | K101: Westfield | M101: 0 | O101: 3732360 | P101: Shortbrook Primary School | Q101: Maintained Primary | R101: pri | S101: 0 | U101: 3732360 | V101: Shortbrook Primary | W101: Primary | X101: 0 | Y101: 0
A102: 3732009 | B102: 139133 | C102: Southey Green Community Primary School and Nurseries | E102: 62009 | F102: 2009 | G102: 3431 | H102: Recoupment Academy | I102: Primary | J102: Mainstream Academy | K102: Chaucer | M102: 3431 | O102: 3732009 | P102: Southey Green Community Primary School and Nurseries | Q102: Mainstream Academy | R102: pri | S102: 0 | U102: 3732009 | V102: Southey Green Primary School & Nurseries | W102: Primary | X102: Recoupment Academy | Y102: 0
A103: 3732329 | B103: 107073 | C103: Springfield Primary School | E103: 72329 | F103: 2329 | H103: 0 | I103: Primary | J103: Maintained Primary | K103: Silverdale | M103: 0 | O103: 3732329 | P103: Springfield Primary School | Q103: Maintained Primary | R103: pri | S103: 0 | U103: 3732329 | V103: Springfield Primary School | W103: Primary | X103: 0 | Y103: 0
A104: 3735202 | B104: 107152 | C104: St Ann's Catholic Primary School | E104: 65202 | F104: 5202 | H104: Recoupment Academy | I104: Primary | J104: Mainstream Academy | K104: Stocksbridge | M104: 0 | O104: 3735202 | P104: St Ann's Catholic Primary School | Q104: Mainstream Academy | R104: pri | S104: 0 | U104: 3735202 | V104: St Anns Catholic Primary | W104: Primary | X104: Recoupment Academy | Y104: 0
A105: 3733402 | B105: 107112 | C105: St Catherine's Catholic Primary School | E105: 63402 | F105: 3402 | H105: Recoupment Academy | I105: Primary | J105: Mainstream Academy | K105: Fir Vale | M105: 0 | O105: 3733402 | P105: St Catherine's Catholic Primary School | Q105: Mainstream Academy | R105: pri | S105: 0 | U105: 3733402 | V105: St Catherine's RC NI&J School | W105: Primary | X105: Recoupment Academy | Y105: 0
A106: 3732017 | B106: 107151 | C106: St John Fisher Primary - A Catholic Voluntary Academy | E106: 62017 | F106: 2017 | G106: 5201 | H106: Recoupment Academy | I106: Primary | J106: Mainstream Academy | K106: Birley | M106: 5201 | O106: 3732017 | P106: St John Fisher Primary - A Catholic Voluntary Academy | Q106: Mainstream Academy | R106: pri | S106: 0 | U106: 3732017 | V106: St John Fisher Primary - A Catholic Voluntary Academy | W106: Primary | X106: Recoupment Academy | Y106: 0
A107: 3735203 | B107: 139346 | C107: St Joseph's Catholic Primary School | E107: 65203 | F107: 5203 | H107: Recoupment Academy | I107: Primary | J107: Mainstream Academy | K107: Handsworth Grange | M107: 0 | O107: 3735203 | P107: St Joseph's Catholic Primary School | Q107: Mainstream Academy | R107: pri | S107: 0 | U107: 3735203 | V107: St Joseph's Primary School CVA | W107: Primary | X107: Recoupment Academy | Y107: 0
A108: 3733406 | B108: 138848 | C108: St Marie's Catholic Primary School | E108: 63406 | F108: 3406 | H108: Recoupment Academy | I108: Primary | J108: Mainstream Academy | K108: King Edward | M108: 0 | O108: 3733406 | P108: St Marie's Catholic Primary School | Q108: Mainstream Academy | R108: pri | S108: 0 | U108: 3733406 | V108: St Marie's School A Catholic Voluntary Academy | W108: Primary | X108: Recoupment Academy | Y108: 0
A109: 3733423 | B109: 107118 | C109: St Mary's Catholic Primary School High Green | E109: 63423 | F109: 3423 | H109: Recoupment Academy | I109: Primary | J109: Mainstream Academy | K109: Ecclesfield | M109: 0 | O109: 3733423 | P109: St Mary's Catholic Primary School High Green | Q109: Mainstream Academy | R109: pri | S109: 0 | U109: 3733423 | V109: St Mary's Catholic Primary | W109: Primary | X109: Recoupment Academy | Y109: 0
A110: 3732020 | B110: 107109 | C110: St Mary's Church of England Primary School | E110: 62020 | F110: 2020 | G110: 3305 | H110: Recoupment Academy | I110: Primary | J110: Mainstream Academy | K110: King Edward | M110: 3305 | O110: 3732020 | P110: St Mary's Church of England Primary School | Q110: Mainstream Academy | R110: pri | S110: 0 | U110: 3732020 | V110: St. Mary's CE Academy Walkley | W110: Primary | X110: Recoupment Academy | Y110: 0
A111: 3735207 | B111: 139347 | C111: St Patrick's Catholic Voluntary Academy | E111: 65207 | F111: 5207 | H111: Recoupment Academy | I111: Primary | J111: Mainstream Academy | K111: Firth Park | M111: 0 | O111: 3735207 | P111: St Patrick's Catholic Voluntary Academy | Q111: Mainstream Academy | R111: pri | S111: 0 | U111: 3735207 | V111: St Patrick's Catholic Voluntary Academy | W111: Primary | X111: Recoupment Academy | Y111: 0
A112: 3735208 | B112: 107158 | C112: St Theresa's Catholic Primary School | E112: 75208 | F112: 5208 | H112: 0 | I112: Primary | J112: Maintained Primary | K112: Park Academy | M112: 0 | O112: 3735208 | P112: St Theresa's Catholic Primary School | Q112: Maintained Primary | R112: pri | S112: 0 | U112: 3735208 | V112: St Theresa's Primary School | W112: Primary | X112: 0 | Y112: 0
A113: 3733424 | B113: 107119 | C113: St Thomas More Catholic Primary School | E113: 73424 | F113: 3424 | H113: 0 | I113: Primary | J113: Maintained Primary | K113: Yewlands | M113: 0 | O113: 3733424 | P113: St Thomas More Catholic Primary School | Q113: Maintained Primary | R113: pri | S113: 0 | U113: 3733424 | V113: St Thomas More Catholic School | W113: Primary | X113: 0 | Y113: 0
A114: 3733414 | B114: 138828 | C114: St Thomas of Canterbury School, a Catholic Voluntary Academy | E114: 63414 | F114: 3414 | H114: Recoupment Academy | I114: Primary | J114: Mainstream Academy | K114: Meadowhead | M114: 0 | O114: 3733414 | P114: St Thomas of Canterbury School, a Catholic Voluntary Academy | Q114: Mainstream Academy | R114: pri | S114: 0 | U114: 3733414 | V114: St Thomas of Canterbury School A Catholic Voluntary Academy | W114: Primary | X114: Recoupment Academy | Y114: 0
A115: 3733412 | B115: 138830 | C115: St Wilfrid's Catholic Primary School | E115: 63412 | F115: 3412 | H115: Recoupment Academy | I115: Primary | J115: Mainstream Academy | K115: Silverdale | M115: 0 | O115: 3733412 | P115: St Wilfrid's Catholic Primary School | Q115: Mainstream Academy | R115: pri | S115: 0 | U115: 3733412 | V115: St.Wilfrid's Primary School a Catholic V.A. | W115: Primary | X115: Recoupment Academy | Y115: 0
A116: 3732294 | B116: 107050 | C116: Stannington Infant School | E116: 72294 | F116: 2294 | H116: 0 | I116: Primary | J116: Maintained Primary | K116: Bradfield | M116: 0 | O116: 3732294 | P116: Stannington Infant School | Q116: Maintained Primary | R116: pri | S116: 0 | U116: 3732294 | V116: Stannington Infant School | W116: Primary | X116: 0 | Y116: 0
A117: 3732303 | B117: 107055 | C117: Stocksbridge Junior School | E117: 72303 | F117: 2303 | H117: 0 | I117: Primary | J117: Maintained Primary | K117: Stocksbridge | M117: 0 | O117: 3732303 | P117: Stocksbridge Junior School | Q117: Maintained Primary | R117: pri | S117: 0 | U117: 3732303 | V117: Stocksbridge Junior School | W117: Primary | X117: 0 | Y117: 0
A118: 3732302 | B118: 107054 | C118: Stocksbridge Nursery Infant School | E118: 72302 | F118: 2302 | H118: 0 | I118: Primary | J118: Maintained Primary | K118: Stocksbridge | M118: 0 | O118: 3732302 | P118: Stocksbridge Nursery Infant School | Q118: Maintained Primary | R118: pri | S118: 0 | U118: 3732302 | V118: Stocksbridge Nursery/Infant | W118: Primary | X118: 0 | Y118: 0
A119: 3732350 | B119: 107093 | C119: Stradbroke Primary School | E119: 72350 | F119: 2350 | H119: 0 | I119: Primary | J119: Maintained Primary | K119: City | M119: 0 | O119: 3732350 | P119: Stradbroke Primary School | Q119: Maintained Primary | R119: pri | S119: 0 | U119: 3732350 | V119: Stradbroke Primary School | W119: Primary | X119: 0 | Y119: 0
A120: 3732002 | B120: 106983 | C120: The Nether Edge Primary School | E120: 72002 | F120: 2002 | H120: 0 | I120: Primary | J120: Maintained Primary | K120: King Ecgbert | M120: 0 | O120: 3732002 | P120: The Nether Edge Primary School | Q120: Maintained Primary | R120: pri | S120: 0 | U120: 3732002 | V120: The Nether Edge Primary School | W120: Primary | X120: 0 | Y120: 0
A121: 3732230 | B121: 107032 | C121: Tinsley Meadows Primary | E121: 72230 | F121: 2230 | G121: 2120 | H121: 0 | I121: Primary | J121: Maintained Primary | K121: Park Academy | M121: 2120 | O121: 3732230 | P121: Tinsley Junior School | Q121: Maintained Primary | R121: pri | S121: 0 | U121: 3732230 | V121: Tinsley Meadows Primary School | W121: Primary | X121: 0 | Y121: 0
A122: 3735206 | B122: 107156 | C122: Totley All Saints Church of England Voluntary Aided Primary School | E122: 75206 | F122: 5206 | H122: 0 | I122: Primary | J122: Maintained Primary | K122: King Ecgbert | M122: 0 | O122: 3735206 | P122: Totley All Saints Church of England Voluntary Aided Primary School | Q122: Maintained Primary | R122: pri | S122: 0 | U122: 3735206 | V122: Totley All Saints CE School | W122: Primary | X122: 0 | Y122: 0
A123: 3732203 | B123: 107024 | C123: Totley Primary School | E123: 62203 | F123: 2203 | H123: Recoupment Academy | I123: Primary | J123: Mainstream Academy | K123: King Ecgbert | M123: 0 | O123: 3732203 | P123: Totley Primary School | Q123: Mainstream Academy | R123: pri | S123: 0 | U123: 3732203 | V123: Totley Primary | W123: Primary | X123: Recoupment Academy | Y123: 0
A124: 3732367 | B124: 133623 | C124: Valley Park Community School | E124: 72367 | F124: 2367 | H124: 0 | I124: Primary | J124: Maintained Primary | K124: Meadowhead | M124: 0 | O124: 3732367 | P124: Valley Park Community School | Q124: Maintained Primary | R124: pri | S124: 0 | U124: 3732367 | V124: Valley Park | W124: Primary | X124: 0 | Y124: 0
A125: 3732351 | B125: 107094 | C125: Walkley Primary School | E125: 72351 | F125: 2351 | H125: 0 | I125: Primary | J125: Maintained Primary | K125: Forge Valley | M125: 0 | O125: 3732351 | P125: Walkley Primary School | Q125: Maintained Primary | R125: pri | S125: 0 | U125: 3732351 | V125: Walkley Primary School | W125: Primary | X125: 0 | Y125: 0
A126: 3733432 | B126: 131082 | C126: Watercliffe Meadow Community Primary School | E126: 73432 | F126: 3432 | H126: 0 | I126: Primary | J126: Maintained Primary | K126: Parkwood | M126: 0 | O126: 3733432 | P126: Watercliffe Meadow Community Primary School | Q126: Maintained Primary | R126: pri | S126: 0 | U126: 3733432 | V126: Watercliffe Meadow School | W126: Primary | X126: 0 | Y126: 0
A127: 3732319 | B127: 107064 | C127: Waterthorpe Infant School | E127: 72319 | F127: 2319 | H127: 0 | I127: Primary | J127: Maintained Primary | K127: Westfield | M127: 0 | O127: 3732319 | P127: Waterthorpe Infant School | Q127: Maintained Primary | R127: pri | S127: 0 | U127: 3732319 | V127: WATERTHORPE NURSERY INFANT SCHOOL | W127: Primary | X127: 0 | Y127: 0
A128: 3732352 | B128: 107095 | C128: Westways Primary School | E128: 72352 | F128: 2352 | H128: 0 | I128: Primary | J128: Maintained Primary | K128: King Edward | M128: 0 | O128: 3732352 | P128: Westways Primary School | Q128: Maintained Primary | R128: pri | S128: 0 | U128: 3732352 | V128: Westways Primary School | W128: Primary | X128: 0 | Y128: 0
A129: 3732311 | B129: 107059 | C129: Wharncliffe Side Primary School | E129: 72311 | F129: 2311 | H129: 0 | I129: Primary | J129: Maintained Primary | K129: Bradfield | M129: 0 | O129: 3732311 | P129: Wharncliffe Side Primary School | Q129: Maintained Primary | R129: pri | S129: 0 | U129: 3732311 | V129: Wharncliffe Side Primary | W129: Primary | X129: 0 | Y129: 0
A130: 3732040 | B130: 106992 | C130: Whiteways Primary School | E130: 72040 | F130: 2040 | H130: 0 | I130: Primary | J130: Maintained Primary | K130: Fir Vale | M130: 0 | O130: 3732040 | P130: Whiteways Primary School | Q130: Maintained Primary | R130: pri | S130: 0 | U130: 3732040 | V130: Whiteways Primary School | W130: Primary | X130: 0 | Y130: 0
A131: 3732027 | B131: 107021 | C131: Wincobank Nursery and Infant School | E131: 62027 | F131: 2027 | G131: 2132 | H131: Recoupment Academy | I131: Primary | J131: Mainstream Academy | K131: Hinde House | M131: 2132 | O131: 3732027 | P131: Wincobank Nursery and Infant School | Q131: Mainstream Academy | R131: pri | S131: 0 | U131: 3732027 | V131: Wincobank Nursery and Infant School | W131: Primary | X131: Recoupment Academy | Y131: 0
A132: 3732361 | B132: 107103 | C132: Windmill Hill Primary School | E132: 72361 | F132: 2361 | H132: 0 | I132: Primary | J132: Maintained Primary | K132: Ecclesfield | M132: 0 | O132: 3732361 | P132: Windmill Hill Primary School | Q132: Maintained Primary | R132: pri | S132: 0 | U132: 3732361 | V132: Windmill Hill Primary School | W132: Primary | X132: 0 | Y132: 0
A133: 3732133 | B133: 107022 | C133: Wisewood Community Primary School | E133: 72133 | F133: 2133 | H133: 0 | I133: Primary | J133: Maintained Primary | K133: Forge Valley | M133: 0 | O133: 3732133 | P133: Wisewood Community Primary School | Q133: Maintained Primary | R133: pri | S133: 0 | U133: 3732133 | V133: Wisewood Primary School | W133: Primary | X133: 0 | Y133: 0
A134: 3732139 | B134: 107023 | C134: Woodhouse West Primary School | E134: 72139 | F134: 2139 | H134: 0 | I134: Primary | J134: Maintained Primary | K134: City | M134: 0 | O134: 3732139 | P134: Woodhouse West Primary School | Q134: Maintained Primary | R134: pri | S134: 0 | U134: 3732139 | V134: Woodhouse West Primary School | W134: Primary | X134: 0 | Y134: 0
A135: 3732324 | B135: 107068 | C135: Woodseats Primary School | E135: 72324 | F135: 2324 | H135: 0 | I135: Primary | J135: Maintained Primary | K135: Meadowhead | M135: 0 | O135: 3732324 | P135: Woodseats Primary School | Q135: Maintained Primary | R135: pri | S135: 0 | U135: 3732324 | V135: Woodseats Primary School | W135: Primary | X135: 0 | Y135: 0
A136: 3732327 | B136: 107071 | C136: Woodthorpe Primary School | E136: 72327 | F136: 2327 | H136: 0 | I136: Primary | J136: Maintained Primary | K136: City | M136: 0 | O136: 3732327 | P136: Woodthorpe Primary School | Q136: Maintained Primary | R136: pri | S136: 0 | U136: 3732327 | V136: Woodthorpe Community Primary | W136: Primary | X136: 0 | Y136: 0
A137: 3732321 | B137: 107065 | C137: Wybourn Community Primary and Nursery School | E137: 72321 | F137: 2321 | H137: 0 | I137: Primary | J137: Maintained Primary | K137: Park Academy | M137: 0 | O137: 3732321 | P137: Wybourn Community Primary and Nursery School | Q137: Maintained Primary | R137: pri | S137: 0 | U137: 3732321 | V137: Wybourn Community Primary School | W137: Primary | X137: 0 | Y137: 0
A138: 3735401 | B138: 138337 | C138: All Saints' Catholic High School | E138: 65401 | F138: 5401 | H138: Recoupment Academy | I138: Secondary | J138: Mainstream Academy | K138: 0 | M138: 0 | O138: 3735401 | P138: All Saints' Catholic High School | Q138: Mainstream Academy | R138: sec | S138: 0 | U138: 3735401 | V138: All Saints Catholic High School | W138: Secondary | X138: Recoupment Academy | Y138: 0
A139: 3734276 | B139: 107146 | C139: Birley Community College | E139: 74276 | F139: 4276 | H139: 0 | I139: Secondary | J139: Maintained Secondary | K139: 0 | M139: 0 | O139: 3734276 | P139: Birley Community College | Q139: Maintained Secondary | R139: sec | S139: 0 | U139: 3734276 | V139: Birley Community College | W139: Secondary | X139: 0 | Y139: 0
A140: 3734272 | B140: 139101 | C140: Bradfield School | E140: 64272 | F140: 4272 | H140: Recoupment Academy | I140: Secondary | J140: Mainstream Academy | K140: 0 | M140: 0 | O140: 3734272 | P140: Bradfield School | Q140: Mainstream Academy | R140: sec | S140: 0 | U140: 3734272 | V140: Bradfield School | W140: Secondary | X140: Recoupment Academy | Y140: 0
A141: 3734000 | B141: 138414 | C141: Chaucer School | E141: 64000 | F141: 4000 | H141: Recoupment Academy | I141: Secondary | J141: Mainstream Academy | K141: 0 | M141: 0 | O141: 3734000 | P141: Chaucer School | Q141: Mainstream Academy | R141: sec | S141: 0 | U141: 3734000 | V141: Chaucer School | W141: Secondary | X141: Recoupment Academy | Y141: 0
A142: 3734270 | B142: 107142 | C142: Ecclesfield School | E142: 64270 | F142: 4270 | H142: Recoupment Academy | I142: Secondary | J142: Mainstream Academy | K142: 0 | M142: 0 | O142: 3734270 | P142: Ecclesfield School | Q142: Mainstream Academy | R142: sec | S142: 0 | U142: 3734270 | V142: Ecclesfield School | W142: Secondary | X142: Recoupment Academy | Y142: 0
A143: 3734280 | B143: 138925 | C143: Fir Vale School | E143: 64280 | F143: 4280 | H143: Recoupment Academy | I143: Secondary | J143: Mainstream Academy | K143: 0 | M143: 0 | O143: 3734280 | P143: Fir Vale School | Q143: Mainstream Academy | R143: sec | S143: 0 | U143: 3734280 | V143: Fir Vale School | W143: Secondary | X143: Recoupment Academy | Y143: 0
A144: 3734003 | B144: 139334 | C144: Firth Park Academy | E144: 64003 | F144: 4003 | H144: Recoupment Academy | I144: Secondary | J144: Mainstream Academy | K144: 0 | M144: 0 | O144: 3734003 | P144: Firth Park Academy | Q144: Mainstream Academy | R144: sec | S144: 0 | U144: 3734003 | V144: Firth Park Academy | W144: Secondary | X144: Recoupment Academy | Y144: 0
A145: 3734007 | B145: 135503 | C145: Forge Valley Community School | E145: 64007 | F145: 4007 | G145: 4605 | H145: Recoupment Academy | I145: Secondary | J145: Mainstream Academy | K145: 0 | M145: 4605 | O145: 3734007 | P145: Forge Valley Community School | Q145: Mainstream Academy | R145: sec | S145: 0 | U145: 3734007 | V145: Forge Valley School | W145: Secondary | X145: Recoupment Academy | Y145: 0
A146: 3734278 | B146: 107148 | C146: Handsworth Grange Community Sports College | E146: 64278 | F146: 4278 | H146: Recoupment Academy | I146: Secondary | J146: Mainstream Academy | K146: 0 | M146: 0 | O146: 3734278 | P146: Handsworth Grange Community Sports College | Q146: Mainstream Academy | R146: sec | S146: 0 | U146: 3734278 | V146: Handsworth Grange Community Sports College | W146: Secondary | X146: Recoupment Academy | Y146: 0
A147: 3734257 | B147: 107139 | C147: High Storrs School | E147: 74257 | F147: 4257 | H147: 0 | I147: Secondary | J147: Maintained Secondary | K147: 0 | M147: 0 | O147: 3734257 | P147: High Storrs School | Q147: Maintained Secondary | R147: sec | S147: 0 | U147: 3734257 | V147: High Storrs School | W147: Secondary | X147: 0 | Y147: 0
A148: 3734230 | B148: 138841 | C148: King Ecgbert School | E148: 64230 | F148: 4230 | H148: Recoupment Academy | I148: Secondary | J148: Mainstream Academy | K148: 0 | M148: 0 | O148: 3734230 | P148: King Ecgbert School | Q148: Mainstream Academy | R148: sec | S148: 0 | U148: 3734230 | V148: King Ecgbert School | W148: Secondary | X148: Recoupment Academy | Y148: 0
A149: 3734259 | B149: 107140 | C149: King Edward VII School | E149: 74259 | F149: 4259 | H149: 0 | I149: Secondary | J149: Maintained Secondary | K149: 0 | M149: 0 | O149: 3734259 | P149: King Edward VII School | Q149: Maintained Secondary | R149: sec | S149: 0 | U149: 3734259 | V149: KING EDWARD VII | W149: Secondary | X149: 0 | Y149: 0
A150: 3734279 | B150: 138545 | C150: Meadowhead School Academy Trust | E150: 64279 | F150: 4279 | H150: Recoupment Academy | I150: Secondary | J150: Mainstream Academy | K150: 0 | M150: 0 | O150: 3734279 | P150: Meadowhead School Academy Trust | Q150: Mainstream Academy | R150: sec | S150: 0 | U150: 3734279 | V150: Meadowhead School Academy Trust | W150: Secondary | X150: Recoupment Academy | Y150: 0
A151: 3734008 | B151: 107141 | C151: Newfield Secondary School | E151: 64008 | F151: 4008 | G151: 4260 | H151: Recoupment Academy | I151: Secondary | J151: Mainstream Academy | K151: 0 | M151: 4260 | O151: 3734008 | P151: Newfield Secondary School | Q151: Mainstream Academy | R151: sec | S151: 0 | U151: 3734008 | V151: Newfield | W151: Secondary | X151: Recoupment Academy | Y151: 0
A152: 3735400 | B152: 138361 | C152: Notre Dame High School | E152: 65400 | F152: 5400 | H152: Recoupment Academy | I152: Secondary | J152: Mainstream Academy | K152: 0 | M152: 0 | O152: 3735400 | P152: Notre Dame High School | Q152: Mainstream Academy | R152: sec | S152: 0 | U152: 3735400 | V152: Notre Dame High School | W152: Secondary | X152: Recoupment Academy | Y152: 0
A153: 3736907 | B153: 135934 | C153: Parkwood Academy | E153: 66907 | F153: 6907 | H153: Recoupment Academy | I153: Secondary | J153: Mainstream Academy | K153: 0 | M153: 0 | O153: 3736907 | P153: Parkwood Academy | Q153: Mainstream Academy | R153: sec | S153: 0 | U153: 3736907 | V153: Parkwood Academy | W153: Secondary | X153: Recoupment Academy | Y153: 0
A154: 3736905 | C154: Sheffield Park Academy | E154: 66905 | F154: 6905 | H154: Recoupment Academy | I154: Secondary | J154: Mainstream Academy | K154: 0 | M154: 0 | O154: 3736905 | P154: Sheffield Park Academy | Q154: Mainstream Academy | R154: sec | S154: 0 | U154: 3736905 | V154: Sheffield Park Academy | W154: Secondary | X154: Non Recoupment Academy | Y154: 0
A155: 3736906 | C155: Sheffield Springs Academy | E155: 66906 | F155: 6906 | H155: Recoupment Academy | I155: Secondary | J155: Mainstream Academy | K155: 0 | M155: 0 | O155: 3736906 | P155: Sheffield Springs Academy | Q155: Mainstream Academy | R155: sec | S155: 0 | U155: 3736906 | V155: Sheffield Springs Academy | W155: Secondary | X155: Non Recoupment Academy | Y155: 0
A156: 3734229 | B156: 139167 | C156: Silverdale School | E156: 64229 | F156: 4229 | H156: Recoupment Academy | I156: Secondary | J156: Mainstream Academy | K156: 0 | M156: 0 | O156: 3734229 | P156: Silverdale School | Q156: Mainstream Academy | R156: sec | S156: 0 | U156: 3734229 | V156: Silverdale School | W156: Secondary | X156: Recoupment Academy | Y156: 0
A157: 3734271 | B157: 107143 | C157: Stocksbridge High School | E157: 74271 | F157: 4271 | H157: 0 | I157: Secondary | J157: Maintained Secondary | K157: 0 | M157: 0 | O157: 3734271 | P157: Stocksbridge High School | Q157: Maintained Secondary | R157: sec | S157: 0 | U157: 3734271 | V157: Stocksbridge High | W157: Secondary | X157: 0 | Y157: 0
A158: 3734234 | B158: 138069 | C158: Tapton School | E158: 64234 | F158: 4234 | H158: Recoupment Academy | I158: Secondary | J158: Mainstream Academy | K158: 0 | M158: 0 | O158: 3734234 | P158: Tapton School | Q158: Mainstream Academy | R158: sec | S158: 0 | U158: 3734234 | V158: Tapton | W158: Secondary | X158: Recoupment Academy | Y158: 0
A159: 3734006 | B159: 107122 | C159: The City School | E159: 64006 | F159: 4006 | G159: 4002 | H159: Recoupment Academy | I159: Secondary | J159: Mainstream Academy | K159: 0 | M159: 4002 | O159: 3734006 | P159: The City School | Q159: Mainstream Academy | R159: sec | S159: 0 | U159: 3734006 | V159: The City School | W159: Secondary | X159: Recoupment Academy | Y159: 0
A160: 3734004 | C160: UTC Sheffield | E160: 64004 | F160: 4004 | H160: Recoupment Academy | I160: Secondary | J160: Mainstream Academy | K160: 0 | M160: 0 | O160: 3734004 | P160: UTC Sheffield | Q160: Mainstream Academy | R160: sec | S160: 0 | U160: 3734004 | V160: UTC Sheffield | W160: Secondary | X160: Non Recoupment Academy | Y160: 0
A161: 3734252 | B161: 107135 | C161: Westfield School | E161: 74252 | F161: 4252 | H161: 0 | I161: Secondary | J161: Maintained Secondary | K161: 0 | M161: 0 | O161: 3734252 | P161: Westfield School | Q161: Maintained Secondary | R161: sec | S161: 0 | U161: 3734252 | V161: Westfield School | W161: Secondary | X161: 0 | Y161: 0
A162: 3734253 | B162: 137400 | C162: Yewlands Technology College | E162: 64253 | F162: 4253 | H162: Recoupment Academy | I162: Secondary | J162: Mainstream Academy | K162: 0 | M162: 0 | O162: 3734253 | P162: Yewlands Technology College | Q162: Mainstream Academy | R162: sec | S162: 0 | U162: 3734253 | V162: Yewlands Academy | W162: Secondary | X162: Recoupment Academy | Y162: 0
A163: 3734225 | B163: 139856 | C163: Hinde House 3-16 School | E163: 64225 | F163: 4225 | H163: Recoupment Academy | I163: Middle-deemed Secondary | J163: Mainstream Academy | K163: 0 | M163: 0 | O163: 3734225 | P163: Hinde House 3-16 School | Q163: Mainstream Academy | R163: sec | S163: 0 | U163: 3734225 | V163: Hinde House School | W163: All-through | X163: Recoupment Academy | Y163: 0
A164: 3737038 | C164: Becton School | E164: 77038 | F164: 7038 | H164: 0 | I164: Special | J164: General Hospital School | M164: 0 | O164: 3737038 | P164: Becton School | Q164: General Hospital School | R164: sp | S164: 0
A165: 3737010 | C165: Bents Green School | E165: 77010 | F165: 7010 | H165: 0 | I165: Special | J165: Maintained Special | M165: 0 | O165: 3737010 | P165: Bents Green School | Q165: Maintained Special | R165: sp | S165: 0
A166: 3737040 | C166: Heritage Park Community School | E166: 77040 | F166: 7040 | H166: 0 | I166: Special | J166: Maintained Special | M166: 0 | O166: 3737040 | P166: Heritage Park Community School | Q166: Maintained Special | R166: sp | S166: 0
A167: 3737041 | C167: Holgate Meadows Community Special School | E167: 77041 | F167: 7041 | H167: 0 | I167: Special | J167: Maintained Special | M167: 0 | O167: 3737041 | P167: Holgate Meadows Community Special School | Q167: Maintained Special | R167: sp | S167: 0
A168: 3737036 | C168: Mossbrook School | E168: 77036 | F168: 7036 | H168: 0 | I168: Special | J168: Maintained Special | M168: 0 | O168: 3737036 | P168: Mossbrook School | Q168: Maintained Special | R168: sp | S168: 0
A169: 3737023 | C169: Norfolk Park School | E169: 77023 | F169: 7023 | H169: 0 | I169: Special | J169: Maintained Special | M169: 0 | O169: 3737023 | P169: Norfolk Park School | Q169: Maintained Special | R169: sp | S169: 0
A170: 3737043 | C170: Seven Hills School | E170: 77043 | F170: 7043 | H170: 0 | I170: Special | J170: Maintained Special | M170: 0 | O170: 3737043 | P170: Seven Hills School | Q170: Maintained Special | R170: sp | S170: 0
A171: 3737024 | C171: Talbot Specialist School | E171: 77024 | F171: 7024 | H171: 0 | I171: Special | J171: Maintained Special | M171: 0 | O171: 3737024 | P171: Talbot Specialist School | Q171: Maintained Special | R171: sp | S171: 0
A172: 3737013 | C172: The Rowan School | E172: 77013 | F172: 7013 | H172: 0 | I172: Special | J172: Maintained Special | M172: 0 | O172: 3737013 | P172: The Rowan School | Q172: Maintained Special | R172: sp | S172: 0
A173: 3737026 | C173: Woolley Wood School | E173: 77026 | F173: 7026 | H173: 0 | I173: Special | J173: Maintained Special | M173: 0 | O173: 3737026 | P173: Woolley Wood School | Q173: Maintained Special | R173: sp | S173: 0
A174: 3731100 | C174: Sheffield Inclusion Centre | E174: 71100 | F174: 1100 | H174: 0 | I174: Special | J174: Pupil Referral Unit | M174: 0 | O174: 3731100 | P174: Sheffield Inclusion Centre | Q174: Pupil Referral Unit | R174: sp | S174: 0
